[Event "Titled Tuesday Blitz May 17 Late 2022"]
[White "Hardaway, Brewington"]
[Black "Vasquez Schroeder, Rodrigo"]
[WhiteFideId "30941849"]
[BlackFideId "3400042"]
[WhiteElo "1768"]
[BlackElo "2567"]
[Result "0-1"]
[Round "02"]
[TimeControl "180+1"]
[Date "2022.05.17"]
[WhiteClock "0:00:02"]
[BlackClock "0:00:20"]

1. e4 {[%clk 0:02:58]}  c6 {[%clk 0:02:59]} 2. d4 {[%clk 0:02:57]}  d5 {[%clk 0:02:59]} 3. e5 {[%clk 0:02:57]}  Bf5 {[%clk 0:02:59]} 4. h4 {[%clk 0:02:55]}  h5 {[%clk 0:02:58]} 5. Bd3 {[%clk 0:02:55]}  Bxd3 {[%clk 0:02:58]} 6. Qxd3 {[%clk 0:02:55]}  Qa5+ {[%clk 0:02:52]} 7. Nd2 {[%clk 0:02:56]}  e6 {[%clk 0:02:51]} 8. Nf3 {[%clk 0:02:54]}  Nh6 {[%clk 0:02:50]} 9. c4 {[%clk 0:02:52]}  dxc4 {[%clk 0:02:42]} 10. Qxc4 {[%clk 0:02:51]}  Nd7 {[%clk 0:02:40]} 11. O-O {[%clk 0:02:35]}  Nb6 {[%clk 0:02:39]} 12. Qc2 {[%clk 0:02:34]}  Nf5 {[%clk 0:02:37]} 13. b3 {[%clk 0:02:33]}  Be7 {[%clk 0:02:31]} 14. g3 {[%clk 0:02:30]}  Rd8 {[%clk 0:02:29]} 15. Bb2 {[%clk 0:02:29]}  Nd5 {[%clk 0:02:27]} 16. Nc4 {[%clk 0:02:22]}  Qa6 {[%clk 0:02:20]} 17. a4 {[%clk 0:02:19]}  O-O {[%clk 0:02:19]} 18. Kg2 {[%clk 0:02:02]}  c5 {[%clk 0:02:12]} 19. dxc5 {[%clk 0:01:59]}  Bxc5 {[%clk 0:02:12]} 20. Qe4 {[%clk 0:01:57]}  Rd7 {[%clk 0:02:03]} 21. Ng5 {[%clk 0:01:49]}  Be7 {[%clk 0:01:58]} 22. Nh3 {[%clk 0:01:26]}  Rfd8 {[%clk 0:01:55]} 23. Nf4 {[%clk 0:01:13]}  Nxf4+ {[%clk 0:01:51]} 24. Qxf4 {[%clk 0:01:14]}  Qc6+ {[%clk 0:01:51]} 25. Kh2 {[%clk 0:01:09]}  Rd3 {[%clk 0:01:49]} 26. f3 {[%clk 0:00:54]}  Rxb3 {[%clk 0:01:36]} 27. Rac1 {[%clk 0:00:37]}  Qxa4 {[%clk 0:01:33]} 28. Ra1 {[%clk 0:00:23]}  Rxb2+ {[%clk 0:01:14]} 29. Nxb2 {[%clk 0:00:23]}  Qc2+ {[%clk 0:01:15]} 30. Kh3 {[%clk 0:00:22]}  Rd2 {[%clk 0:01:10]} 31. g4 {[%clk 0:00:21]}  hxg4+ {[%clk 0:01:04]} 32. fxg4 {[%clk 0:00:20]}  Nh6 {[%clk 0:00:58]} 33. Nc4 {[%clk 0:00:17]}  Rd3+ {[%clk 0:00:57]} 34. Ne3 {[%clk 0:00:17]}  Qc3 {[%clk 0:00:48]} 35. Rae1 {[%clk 0:00:09]}  Rd4 {[%clk 0:00:43]} 36. Qf3 {[%clk 0:00:08]}  Bc5 {[%clk 0:00:40]} 37. Re2 {[%clk 0:00:05]}  Rd3 {[%clk 0:00:40]} 38. Rfe1 {[%clk 0:00:05]}  Qxe5 {[%clk 0:00:37]} 39. Kg2 {[%clk 0:00:05]}  Qd4 {[%clk 0:00:35]} 40. Qxb7 {[%clk 0:00:02]}  Nxg4 {[%clk 0:00:28]} 41. Qa8+ {[%clk 0:00:02]}  Kh7 {[%clk 0:00:22]} 42. Nf1 {[%clk 0:00:02]}  Qg1# {[%clk 0:00:20]} 0-1


[Site "https://www.chess.com"]

[Event "Titled Tuesday Blitz May 17 Late 2022"]
[White "Horobetz, Graham"]
[Black "Moskalenko, Alexander"]
[WhiteFideId "2047322"]
[BlackFideId "4155351"]
[WhiteElo "2604"]
[BlackElo "2434"]
[Result "0-1"]
[Round "02"]
[TimeControl "180+1"]
[Date "2022.05.17"]
[WhiteClock "0:01:21"]
[BlackClock "0:01:22"]

1. e4 {[%clk 0:03:00]}  e5 {[%clk 0:02:59]} 2. Nf3 {[%clk 0:03:00]}  Nc6 {[%clk 0:02:59]} 3. Bb5 {[%clk 0:03:00]}  Nf6 {[%clk 0:03:00]} 4. O-O {[%clk 0:02:59]}  Nxe4 {[%clk 0:02:48]} 5. Re1 {[%clk 0:02:59]}  Nd6 {[%clk 0:02:48]} 6. Nxe5 {[%clk 0:03:00]}  Nxe5 {[%clk 0:02:47]} 7. Rxe5+ {[%clk 0:03:01]}  Be7 {[%clk 0:02:48]} 8. Bf1 {[%clk 0:03:01]}  O-O {[%clk 0:02:47]} 9. d4 {[%clk 0:03:02]}  Bf6 {[%clk 0:02:48]} 10. Re1 {[%clk 0:03:02]}  Nf5 {[%clk 0:02:49]} 11. d5 {[%clk 0:03:01]}  d6 {[%clk 0:02:49]} 12. Nd2 {[%clk 0:03:01]}  Bg5 {[%clk 0:02:40]} 13. g3 {[%clk 0:02:52]}  Re8 {[%clk 0:02:39]} 14. f4 {[%clk 0:02:51]}  Rxe1 {[%clk 0:02:37]} 15. Qxe1 {[%clk 0:02:51]}  Bf6 {[%clk 0:02:38]} 16. c3 {[%clk 0:02:49]}  g6 {[%clk 0:02:35]} 17. Ne4 {[%clk 0:02:38]}  Bg7 {[%clk 0:02:34]} 18. Be3 {[%clk 0:02:31]}  Nxe3 {[%clk 0:02:34]} 19. Qxe3 {[%clk 0:02:32]}  Bd7 {[%clk 0:02:28]} 20. Re1 {[%clk 0:02:30]}  Qe7 {[%clk 0:02:25]} 21. Nd2 {[%clk 0:02:15]}  Qf8 {[%clk 0:02:09]} 22. Bg2 {[%clk 0:02:07]}  Re8 {[%clk 0:02:08]} 23. Qf2 {[%clk 0:02:07]}  Rxe1+ {[%clk 0:02:08]} 24. Qxe1 {[%clk 0:02:08]}  a5 {[%clk 0:01:56]} 25. Qe3 {[%clk 0:02:00]}  b6 {[%clk 0:01:56]} 26. Nb3 {[%clk 0:01:48]}  Bf6 {[%clk 0:01:50]} 27. Nd4 {[%clk 0:01:42]}  h5 {[%clk 0:01:47]} 28. h4 {[%clk 0:01:38]}  b5 {[%clk 0:01:28]} 29. Bf3 {[%clk 0:01:34]}  b4 {[%clk 0:01:27]} 30. Kg2 {[%clk 0:01:27]}  bxc3 {[%clk 0:01:25]} 31. Qxc3 {[%clk 0:01:28]}  Qb8 {[%clk 0:01:24]} 32. b3 {[%clk 0:01:21]}  Qb6 {[%clk 0:01:22]} 0-1


[Site "https://www.chess.com"]

[Event "Titled Tuesday Blitz May 17 Late 2022"]
[White "Indjic, Aleksandar"]
[Black "Gallo Garcia, Kemel Antonio"]
[WhiteFideId "911925"]
[BlackFideId "3523896"]
[WhiteElo "2616"]
[BlackElo "2359"]
[Result "1-0"]
[Round "02"]
[TimeControl "180+1"]
[Date "2022.05.17"]
[WhiteClock "0:01:35"]
[BlackClock "0:00:08"]

1. e4 {[%clk 0:03:00]}  e5 {[%clk 0:02:59]} 2. Nf3 {[%clk 0:02:57]}  Nc6 {[%clk 0:02:59]} 3. Bb5 {[%clk 0:02:55]}  a6 {[%clk 0:02:59]} 4. Ba4 {[%clk 0:02:53]}  Nf6 {[%clk 0:03:00]} 5. O-O {[%clk 0:02:53]}  Be7 {[%clk 0:03:00]} 6. Bxc6 {[%clk 0:02:53]}  dxc6 {[%clk 0:03:00]} 7. d3 {[%clk 0:02:53]}  Bd6 {[%clk 0:02:57]} 8. Nbd2 {[%clk 0:02:53]}  Qe7 {[%clk 0:02:53]} 9. Nc4 {[%clk 0:02:52]}  Bg4 {[%clk 0:02:49]} 10. h3 {[%clk 0:02:51]}  Bh5 {[%clk 0:02:48]} 11. Ne3 {[%clk 0:02:50]}  Bg6 {[%clk 0:02:11]} 12. Nh4 {[%clk 0:02:48]}  Qd7 {[%clk 0:02:02]} 13. Nhf5 {[%clk 0:02:46]}  O-O {[%clk 0:01:57]} 14. Qf3 {[%clk 0:02:44]}  Bc5 {[%clk 0:01:54]} 15. Nc4 {[%clk 0:02:36]}  Rfe8 {[%clk 0:01:52]} 16. Bg5 {[%clk 0:02:32]}  Bxf5 {[%clk 0:01:36]} 17. Bxf6 {[%clk 0:02:30]}  gxf6 {[%clk 0:01:36]} 18. exf5 {[%clk 0:02:29]}  Kh8 {[%clk 0:01:33]} 19. Nd2 {[%clk 0:02:26]}  Be7 {[%clk 0:01:12]} 20. Ne4 {[%clk 0:02:26]}  Rg8 {[%clk 0:01:11]} 21. Rad1 {[%clk 0:02:22]}  c5 {[%clk 0:01:11]} 22. b3 {[%clk 0:02:20]}  b5 {[%clk 0:01:10]} 23. g4 {[%clk 0:02:18]}  a5 {[%clk 0:01:10]} 24. Kh2 {[%clk 0:02:17]}  a4 {[%clk 0:01:10]} 25. Rg1 {[%clk 0:02:14]}  axb3 {[%clk 0:01:09]} 26. axb3 {[%clk 0:02:14]}  Ra2 {[%clk 0:01:09]} 27. Qe2 {[%clk 0:02:10]}  Qd4 {[%clk 0:01:02]} 28. h4 {[%clk 0:02:06]}  Qb2 {[%clk 0:00:48]} 29. Rd2 {[%clk 0:02:04]}  Ra1 {[%clk 0:00:48]} 30. Rxa1 {[%clk 0:02:03]}  Qxa1 {[%clk 0:00:49]} 31. Rd1 {[%clk 0:02:01]}  Qd4 {[%clk 0:00:46]} 32. Rg1 {[%clk 0:02:00]}  h6 {[%clk 0:00:38]} 33. g5 {[%clk 0:01:59]}  hxg5 {[%clk 0:00:32]} 34. hxg5 {[%clk 0:02:00]}  Rxg5 {[%clk 0:00:22]} 35. c3 {[%clk 0:01:40]}  Qd7 {[%clk 0:00:16]} 36. Rxg5 {[%clk 0:01:38]}  fxg5 {[%clk 0:00:14]} 37. Qh5+ {[%clk 0:01:35]}  Kg7 {[%clk 0:00:12]} 38. f6+ {[%clk 0:01:35]}  Bxf6 {[%clk 0:00:12]} 39. Qh7+ {[%clk 0:01:36]}  Kxh7 {[%clk 0:00:10]} 40. Nxf6+ {[%clk 0:01:35]}  Kg7 {[%clk 0:00:09]} 41. Nxd7 {[%clk 0:01:35]}  c4 {[%clk 0:00:10]} 42. bxc4 {[%clk 0:01:33]}  bxc4 {[%clk 0:00:11]} 43. Nxe5 {[%clk 0:01:33]}  cxd3 {[%clk 0:00:11]} 44. Nxd3 {[%clk 0:01:33]}  Kf6 {[%clk 0:00:11]} 45. Kg3 {[%clk 0:01:33]}  Kf5 {[%clk 0:00:11]} 46. Kf3 {[%clk 0:01:33]}  f6 {[%clk 0:00:09]} 47. Ke3 {[%clk 0:01:33]}  Ke6 {[%clk 0:00:09]} 48. Ke4 {[%clk 0:01:34]}  f5+ {[%clk 0:00:09]} 49. Kd4 {[%clk 0:01:34]}  Kd6 {[%clk 0:00:08]} 50. c4 {[%clk 0:01:35]}  Ke6 {[%clk 0:00:08]} 51. c5 {[%clk 0:01:35]}  f4 {[%clk 0:00:08]} 52. Ke4 {[%clk 0:01:35]}  c6 {[%clk 0:00:08]} 53. f3 {[%clk 0:01:35]} 1-0


[Site "https://www.chess.com"]

[Event "Titled Tuesday Blitz May 17 Late 2022"]
[White "Karttunen, Mika"]
[Black "Bazeev, German"]
[WhiteFideId "502081"]
[BlackFideId "24119350"]
[WhiteElo "2343"]
[BlackElo "2493"]
[Result "1/2-1/2"]
[Round "02"]
[TimeControl "180+1"]
[Date "2022.05.17"]
[WhiteClock "0:00:05"]
[BlackClock "0:00:09"]

1. e4 {[%clk 0:03:00]}  c5 {[%clk 0:02:58]} 2. Nf3 {[%clk 0:03:00]}  Nf6 {[%clk 0:02:58]} 3. Nc3 {[%clk 0:02:59]}  Nc6 {[%clk 0:02:58]} 4. d4 {[%clk 0:02:59]}  d5 {[%clk 0:02:58]} 5. exd5 {[%clk 0:02:53]}  Nxd5 {[%clk 0:02:59]} 6. Bb5 {[%clk 0:02:53]}  Nxc3 {[%clk 0:02:59]} 7. bxc3 {[%clk 0:02:47]}  cxd4 {[%clk 0:03:00]} 8. O-O {[%clk 0:02:44]}  e6 {[%clk 0:02:59]} 9. Nxd4 {[%clk 0:02:41]}  Bd7 {[%clk 0:02:59]} 10. Qg4 {[%clk 0:02:31]}  Nxd4 {[%clk 0:02:55]} 11. Bxd7+ {[%clk 0:02:30]}  Qxd7 {[%clk 0:02:56]} 12. cxd4 {[%clk 0:02:31]}  Rc8 {[%clk 0:02:52]} 13. Be3 {[%clk 0:02:25]}  h5 {[%clk 0:02:51]} 14. Qg3 {[%clk 0:02:17]}  h4 {[%clk 0:02:50]} 15. Qg4 {[%clk 0:02:17]}  h3 {[%clk 0:02:49]} 16. gxh3 {[%clk 0:01:54]}  Qd5 {[%clk 0:02:24]} 17. Rfc1 {[%clk 0:01:46]}  Rc4 {[%clk 0:02:19]} 18. a4 {[%clk 0:01:36]}  g6 {[%clk 0:01:25]} 19. Rab1 {[%clk 0:01:28]}  a6 {[%clk 0:01:24]} 20. Qg2 {[%clk 0:01:22]}  Rc7 {[%clk 0:00:49]} 21. c4 {[%clk 0:01:14]}  Qxg2+ {[%clk 0:00:48]} 22. Kxg2 {[%clk 0:01:14]}  Rh5 {[%clk 0:00:49]} 23. c5 {[%clk 0:01:11]}  Rd5 {[%clk 0:00:47]} 24. f4 {[%clk 0:00:37]}  Kd7 {[%clk 0:00:41]} 25. Kf3 {[%clk 0:00:36]}  Kc8 {[%clk 0:00:40]} 26. Ke4 {[%clk 0:00:36]}  Bg7 {[%clk 0:00:38]} 27. Rb3 {[%clk 0:00:26]}  Rdd7 {[%clk 0:00:29]} 28. Rcb1 {[%clk 0:00:25]}  Rc6 {[%clk 0:00:29]} 29. Rg1 {[%clk 0:00:21]}  Bf6 {[%clk 0:00:28]} 30. Bf2 {[%clk 0:00:19]}  Bd8 {[%clk 0:00:26]} 31. Rgb1 {[%clk 0:00:18]}  Bf6 {[%clk 0:00:22]} 32. Rb4 {[%clk 0:00:16]}  Be7 {[%clk 0:00:21]} 33. R4b3 {[%clk 0:00:17]}  Rcc7 {[%clk 0:00:18]} 34. Rb6 {[%clk 0:00:16]}  Rd5 {[%clk 0:00:18]} 35. R1b3 {[%clk 0:00:14]}  Rdd7 {[%clk 0:00:17]} 36. Rb1 {[%clk 0:00:14]}  Bd8 {[%clk 0:00:17]} 37. R1b3 {[%clk 0:00:13]}  Rc6 {[%clk 0:00:17]} 38. Rxc6+ {[%clk 0:00:13]}  bxc6 {[%clk 0:00:18]} 39. Rb1 {[%clk 0:00:10]}  Rd5 {[%clk 0:00:17]} 40. Rb3 {[%clk 0:00:10]}  Bc7 {[%clk 0:00:18]} 41. Rf3 {[%clk 0:00:07]}  Kd7 {[%clk 0:00:15]} 42. Rb3 {[%clk 0:00:07]}  Kc8 {[%clk 0:00:15]} 43. Rf3 {[%clk 0:00:07]}  Rh5 {[%clk 0:00:16]} 44. Rb3 {[%clk 0:00:06]}  Rh7 {[%clk 0:00:10]} 45. Rf3 {[%clk 0:00:06]}  Ba5 {[%clk 0:00:09]} 46. Kd3 {[%clk 0:00:06]}  Rh5 {[%clk 0:00:09]} 47. Kc4 {[%clk 0:00:06]}  Rf5 {[%clk 0:00:08]} 48. Kd3 {[%clk 0:00:06]}  Bc7 {[%clk 0:00:08]} 49. Ke4 {[%clk 0:00:06]}  Rd5 {[%clk 0:00:07]} 50. Kd3 {[%clk 0:00:06]}  Rf5 {[%clk 0:00:07]} 51. Ke4 {[%clk 0:00:07]}  g5 {[%clk 0:00:07]} 52. fxg5 {[%clk 0:00:07]}  Rxg5 {[%clk 0:00:06]} 53. Rxf7 {[%clk 0:00:07]}  Rg2 {[%clk 0:00:07]} 54. h4 {[%clk 0:00:05]}  Rxh2 {[%clk 0:00:07]} 55. Rf8+ {[%clk 0:00:03]}  Kd7 {[%clk 0:00:07]} 56. Rf7+ {[%clk 0:00:04]}  Kc8 {[%clk 0:00:07]} 57. Rf8+ {[%clk 0:00:04]}  Kd7 {[%clk 0:00:08]} 58. Rf7+ {[%clk 0:00:05]}  Kc8 {[%clk 0:00:09]} 1/2-1/2


[Site "https://www.chess.com"]

[Event "Titled Tuesday Blitz May 17 Late 2022"]
[White "Keymer, Vincent"]
[Black "Rozovsky, Daniel"]
[WhiteFideId "12940690"]
[BlackFideId "2020904"]
[WhiteElo "2548"]
[BlackElo "2633"]
[Result "1-0"]
[Round "02"]
[TimeControl "180+1"]
[Date "2022.05.17"]
[WhiteClock "0:00:40"]
[BlackClock "0:00:19"]

1. Nf3 {[%clk 0:03:00]}  Nf6 {[%clk 0:02:59]} 2. c4 {[%clk 0:03:00]}  e6 {[%clk 0:03:00]} 3. Nc3 {[%clk 0:03:01]}  d5 {[%clk 0:03:00]} 4. e3 {[%clk 0:03:01]}  b6 {[%clk 0:02:59]} 5. cxd5 {[%clk 0:03:01]}  exd5 {[%clk 0:02:58]} 6. g3 {[%clk 0:02:59]}  Bb7 {[%clk 0:02:58]} 7. Bg2 {[%clk 0:02:59]}  Be7 {[%clk 0:02:59]} 8. O-O {[%clk 0:02:59]}  O-O {[%clk 0:02:59]} 9. b3 {[%clk 0:03:00]}  c5 {[%clk 0:02:55]} 10. d4 {[%clk 0:03:00]}  Nbd7 {[%clk 0:02:40]} 11. Bb2 {[%clk 0:02:59]}  Ne4 {[%clk 0:02:38]} 12. dxc5 {[%clk 0:02:48]}  Ndxc5 {[%clk 0:02:21]} 13. Ne2 {[%clk 0:02:45]}  Bf6 {[%clk 0:02:16]} 14. Bxf6 {[%clk 0:02:38]}  Qxf6 {[%clk 0:02:17]} 15. Qd4 {[%clk 0:02:38]}  Qf5 {[%clk 0:02:02]} 16. Rfd1 {[%clk 0:02:28]}  Rfd8 {[%clk 0:02:02]} 17. Rac1 {[%clk 0:02:27]}  Rac8 {[%clk 0:01:53]} 18. Nf4 {[%clk 0:02:17]}  Ne6 {[%clk 0:01:33]} 19. Nxe6 {[%clk 0:02:05]}  fxe6 {[%clk 0:01:31]} 20. Qb2 {[%clk 0:02:05]}  Qf6 {[%clk 0:01:25]} 21. Qxf6 {[%clk 0:01:43]}  gxf6 {[%clk 0:01:26]} 22. Nd4 {[%clk 0:01:38]}  e5 {[%clk 0:01:11]} 23. Rxc8 {[%clk 0:01:12]}  Rxc8 {[%clk 0:01:06]} 24. Bxe4 {[%clk 0:01:11]}  dxe4 {[%clk 0:00:58]} 25. Nf5 {[%clk 0:01:11]}  Rc7 {[%clk 0:00:57]} 26. g4 {[%clk 0:01:06]}  Ba6 {[%clk 0:00:52]} 27. Rd8+ {[%clk 0:00:59]}  Kf7 {[%clk 0:00:51]} 28. h3 {[%clk 0:01:00]}  Be2 {[%clk 0:00:48]} 29. Rh8 {[%clk 0:00:53]}  Rc1+ {[%clk 0:00:46]} 30. Kh2 {[%clk 0:00:52]}  a5 {[%clk 0:00:31]} 31. Rxh7+ {[%clk 0:00:51]}  Kf8 {[%clk 0:00:32]} 32. Rb7 {[%clk 0:00:50]}  b5 {[%clk 0:00:31]} 33. Ra7 {[%clk 0:00:47]}  a4 {[%clk 0:00:24]} 34. bxa4 {[%clk 0:00:47]}  b4 {[%clk 0:00:24]} 35. Rb7 {[%clk 0:00:47]}  Rb1 {[%clk 0:00:23]} 36. a5 {[%clk 0:00:45]}  Rb2 {[%clk 0:00:24]} 37. Kg3 {[%clk 0:00:44]}  Bc4 {[%clk 0:00:23]} 38. Rb8+ {[%clk 0:00:44]}  Kf7 {[%clk 0:00:19]} 39. Nd6+ {[%clk 0:00:44]}  Ke6 {[%clk 0:00:20]} 40. Nxc4 {[%clk 0:00:45]}  Rxa2 {[%clk 0:00:20]} 41. Rxb4 {[%clk 0:00:44]}  Kd5 {[%clk 0:00:20]} 42. Nb6+ {[%clk 0:00:41]}  Kc5 {[%clk 0:00:21]} 43. Rb1 {[%clk 0:00:41]}  Rxa5 {[%clk 0:00:21]} 44. Nd7+ {[%clk 0:00:41]}  Kd6 {[%clk 0:00:19]} 45. Nxf6 {[%clk 0:00:42]}  Ra4 {[%clk 0:00:19]} 46. g5 {[%clk 0:00:41]}  Ke6 {[%clk 0:00:20]} 47. Kg4 {[%clk 0:00:41]}  Ra2 {[%clk 0:00:19]} 48. Nxe4 {[%clk 0:00:41]}  Ra3 {[%clk 0:00:18]} 49. h4 {[%clk 0:00:41]}  Kd5 {[%clk 0:00:18]} 50. Nf6+ {[%clk 0:00:40]}  Ke6 {[%clk 0:00:18]} 51. Rb6+ {[%clk 0:00:40]}  Kf7 {[%clk 0:00:18]} 52. h5 {[%clk 0:00:40]}  Ra7 {[%clk 0:00:18]} 53. Kf5 {[%clk 0:00:40]}  e4 {[%clk 0:00:19]} 54. Rb5 {[%clk 0:00:39]}  Kg7 {[%clk 0:00:19]} 55. h6+ {[%clk 0:00:39]}  Kf7 {[%clk 0:00:19]} 56. g6+ {[%clk 0:00:39]}  Kf8 {[%clk 0:00:19]} 57. Rb8+ {[%clk 0:00:40]}  Ke7 {[%clk 0:00:19]} 58. Re8+ {[%clk 0:00:38]}  Kd6 {[%clk 0:00:19]} 59. Re6+ {[%clk 0:00:39]}  Kc5 {[%clk 0:00:19]} 60. h7 {[%clk 0:00:40]} 1-0


[Site "https://www.chess.com"]

[Event "Titled Tuesday Blitz May 17 Late 2022"]
[White "Kozak, Adam"]
[Black "De La Colina, Nicolas"]
[WhiteFideId "753246"]
[BlackFideId "30946921"]
[WhiteElo "2459"]
[BlackElo "2046"]
[Result "1/2-1/2"]
[Round "02"]
[TimeControl "180+1"]
[Date "2022.05.17"]
[WhiteClock "0:00:18"]
[BlackClock "0:00:19"]

1. e4 {[%clk 0:03:00]}  c5 {[%clk 0:02:59]} 2. f4 {[%clk 0:03:00]}  d5 {[%clk 0:02:59]} 3. exd5 {[%clk 0:02:58]}  Nf6 {[%clk 0:02:58]} 4. Nc3 {[%clk 0:02:56]}  Nxd5 {[%clk 0:02:54]} 5. d3 {[%clk 0:02:55]}  Nc6 {[%clk 0:02:52]} 6. Nf3 {[%clk 0:02:54]}  g6 {[%clk 0:02:52]} 7. Bd2 {[%clk 0:02:53]}  Bg7 {[%clk 0:02:52]} 8. Be2 {[%clk 0:02:53]}  O-O {[%clk 0:02:51]} 9. O-O {[%clk 0:02:53]}  b6 {[%clk 0:02:52]} 10. Kh1 {[%clk 0:02:53]}  Bb7 {[%clk 0:02:52]} 11. Qe1 {[%clk 0:02:43]}  Rc8 {[%clk 0:02:48]} 12. Nxd5 {[%clk 0:02:39]}  Qxd5 {[%clk 0:02:48]} 13. c3 {[%clk 0:02:39]}  Rfe8 {[%clk 0:02:45]} 14. Qh4 {[%clk 0:02:38]}  Ba6 {[%clk 0:02:17]} 15. f5 {[%clk 0:02:34]}  Bxd3 {[%clk 0:02:04]} 16. fxg6 {[%clk 0:02:11]}  Bxg6 {[%clk 0:02:02]} 17. Bg5 {[%clk 0:01:59]}  Qe4 {[%clk 0:01:58]} 18. Qf2 {[%clk 0:01:55]}  Rcd8 {[%clk 0:01:56]} 19. Rae1 {[%clk 0:01:55]}  Qc2 {[%clk 0:01:49]} 20. Bb5 {[%clk 0:01:54]}  Qxf2 {[%clk 0:01:38]} 21. Rxf2 {[%clk 0:01:55]}  Rd6 {[%clk 0:01:38]} 22. Bxc6 {[%clk 0:01:44]}  Rxc6 {[%clk 0:01:39]} 23. Bxe7 {[%clk 0:01:44]}  Re6 {[%clk 0:01:26]} 24. Rxe6 {[%clk 0:01:39]}  fxe6 {[%clk 0:01:26]} 25. Bg5 {[%clk 0:01:38]}  e5 {[%clk 0:01:26]} 26. Be3 {[%clk 0:01:38]}  e4 {[%clk 0:01:20]} 27. Nd2 {[%clk 0:01:38]}  Rd8 {[%clk 0:01:17]} 28. Kg1 {[%clk 0:01:36]}  Rd3 {[%clk 0:01:15]} 29. Re2 {[%clk 0:01:36]}  Bh5 {[%clk 0:00:45]} 30. Re1 {[%clk 0:01:36]}  Bg6 {[%clk 0:00:43]} 31. Kf2 {[%clk 0:01:32]}  Bf6 {[%clk 0:00:43]} 32. h3 {[%clk 0:01:31]}  Kf7 {[%clk 0:00:39]} 33. g3 {[%clk 0:01:27]}  Ke6 {[%clk 0:00:38]} 34. Bf4 {[%clk 0:01:26]}  Kd5 {[%clk 0:00:37]} 35. Be3 {[%clk 0:01:19]}  b5 {[%clk 0:00:31]} 36. Ke2 {[%clk 0:00:38]}  Kc6 {[%clk 0:00:23]} 37. Nb3 {[%clk 0:00:35]}  Be7 {[%clk 0:00:21]} 38. Rf1 {[%clk 0:00:32]}  Rd5 {[%clk 0:00:18]} 39. Nd2 {[%clk 0:00:30]}  Rf5 {[%clk 0:00:15]} 40. Rxf5 {[%clk 0:00:24]}  Bxf5 {[%clk 0:00:16]} 41. g4 {[%clk 0:00:24]}  Bg6 {[%clk 0:00:16]} 42. b3 {[%clk 0:00:24]}  Kd5 {[%clk 0:00:16]} 43. c4+ {[%clk 0:00:25]}  bxc4 {[%clk 0:00:16]} 44. Nxc4 {[%clk 0:00:26]}  Bd8 {[%clk 0:00:13]} 45. Bf4 {[%clk 0:00:23]}  Be8 {[%clk 0:00:10]} 46. Kd2 {[%clk 0:00:21]}  Bb5 {[%clk 0:00:09]} 47. Ne3+ {[%clk 0:00:21]}  Ke6 {[%clk 0:00:09]} 48. Kc1 {[%clk 0:00:17]}  Ba5 {[%clk 0:00:09]} 49. Kc2 {[%clk 0:00:16]}  Bd3+ {[%clk 0:00:09]} 50. Kd1 {[%clk 0:00:17]}  Bb4 {[%clk 0:00:08]} 51. Nf5 {[%clk 0:00:17]}  Kd5 {[%clk 0:00:08]} 52. Be3 {[%clk 0:00:15]}  Bc3 {[%clk 0:00:07]} 53. Bd2 {[%clk 0:00:14]}  Bd4 {[%clk 0:00:05]} 54. Ng3 {[%clk 0:00:12]}  Ke5 {[%clk 0:00:04]} 55. Nf5 {[%clk 0:00:10]}  Kd5 {[%clk 0:00:04]} 56. Be3 {[%clk 0:00:07]}  Be5 {[%clk 0:00:04]} 57. Kd2 {[%clk 0:00:06]}  Bf6 {[%clk 0:00:03]} 58. h4 {[%clk 0:00:06]}  Be5 {[%clk 0:00:03]} 59. h5 {[%clk 0:00:06]}  Bd4 {[%clk 0:00:03]} 60. g5 {[%clk 0:00:06]}  Be5 {[%clk 0:00:03]} 61. g6 {[%clk 0:00:07]}  hxg6 {[%clk 0:00:04]} 62. hxg6 {[%clk 0:00:07]}  Ke6 {[%clk 0:00:04]} 63. g7 {[%clk 0:00:08]}  Kf7 {[%clk 0:00:01]} 64. Bxc5 {[%clk 0:00:08]}  Bxg7 {[%clk 0:00:01]} 65. Nxg7 {[%clk 0:00:08]}  Kxg7 {[%clk 0:00:02]} 66. Bxa7 {[%clk 0:00:09]}  Kf7 {[%clk 0:00:02]} 67. Kc3 {[%clk 0:00:09]}  Ke6 {[%clk 0:00:03]} 68. a4 {[%clk 0:00:08]}  Kd7 {[%clk 0:00:04]} 69. b4 {[%clk 0:00:08]}  Kc6 {[%clk 0:00:05]} 70. Be3 {[%clk 0:00:08]}  Kb7 {[%clk 0:00:06]} 71. Kd4 {[%clk 0:00:08]}  Kc6 {[%clk 0:00:06]} 72. Kc3 {[%clk 0:00:08]}  Kb7 {[%clk 0:00:07]} 73. b5 {[%clk 0:00:09]}  Be2 {[%clk 0:00:03]} 74. Kb4 {[%clk 0:00:09]}  Bd3 {[%clk 0:00:03]} 75. a5 {[%clk 0:00:09]}  Be2 {[%clk 0:00:04]} 76. a6+ {[%clk 0:00:07]}  Ka8 {[%clk 0:00:03]} 77. Ka5 {[%clk 0:00:08]}  Bxb5 {[%clk 0:00:03]} 78. Kxb5 {[%clk 0:00:08]}  Kb8 {[%clk 0:00:04]} 79. Kb6 {[%clk 0:00:08]}  Ka8 {[%clk 0:00:04]} 80. Bc5 {[%clk 0:00:09]}  e3 {[%clk 0:00:04]} 81. Bb4 {[%clk 0:00:06]}  e2 {[%clk 0:00:05]} 82. Be1 {[%clk 0:00:07]}  Kb8 {[%clk 0:00:05]} 83. Kb5 {[%clk 0:00:07]}  Ka8 {[%clk 0:00:06]} 84. Bf2 {[%clk 0:00:08]}  Kb8 {[%clk 0:00:07]} 85. Kc4 {[%clk 0:00:08]}  e1=Q {[%clk 0:00:06]} 86. Bxe1 {[%clk 0:00:08]}  Ka7 {[%clk 0:00:07]} 87. Kb5 {[%clk 0:00:09]}  Ka8 {[%clk 0:00:08]} 88. Bd2 {[%clk 0:00:09]}  Kb8 {[%clk 0:00:09]} 89. Bb4 {[%clk 0:00:10]}  Ka8 {[%clk 0:00:09]} 90. Ka5 {[%clk 0:00:11]}  Ka7 {[%clk 0:00:10]} 91. Bc5+ {[%clk 0:00:11]}  Ka8 {[%clk 0:00:11]} 92. Bb6 {[%clk 0:00:12]}  Kb8 {[%clk 0:00:11]} 93. Kb5 {[%clk 0:00:13]}  Ka8 {[%clk 0:00:12]} 94. Kc6 {[%clk 0:00:14]}  Kb8 {[%clk 0:00:13]} 95. Bc7+ {[%clk 0:00:14]}  Ka8 {[%clk 0:00:13]} 96. Kb5 {[%clk 0:00:15]}  Ka7 {[%clk 0:00:14]} 97. Bd6 {[%clk 0:00:16]}  Ka8 {[%clk 0:00:15]} 98. Bb4 {[%clk 0:00:15]}  Ka7 {[%clk 0:00:16]} 99. Kc6 {[%clk 0:00:15]}  Ka8 {[%clk 0:00:16]} 100. Kb6 {[%clk 0:00:16]}  Kb8 {[%clk 0:00:17]} 101. Ka5 {[%clk 0:00:16]}  Ka8 {[%clk 0:00:18]} 102. Bc5 {[%clk 0:00:16]}  Kb8 {[%clk 0:00:18]} 103. Ba7+ {[%clk 0:00:17]}  Ka8 {[%clk 0:00:19]} 104. Kb6 {[%clk 0:00:18]} 1/2-1/2


[Site "https://www.chess.com"]